fUSD/lending_fUSD_20251109
["ID","MTS","AMOUNT","RATE_DAILY","PERIOD"]
[393478678,1762709444062,-288.0,0.0002745,2]
[393478679,1762709444072,-288.0,0.0002745,2]
[393478680,1762709444086,-288.0,0.0002745,2]
[393478681,1762709444095,-288.0,0.0002745,2]
[393478682,1762709444106,-288.0,0.0002745,2]
[393478683,1762709444116,-285.0,0.0002745,2]
[393478684,1762709444126,-285.0,0.0002745,2]
[393478685,1762709444135,-285.0,0.0002745,2]
[393478686,1762709444143,-285.0,0.0002745,2]
[393478687,1762709444153,-285.0,0.0002745,2]
[393478688,1762709444165,-285.0,0.0002745,2]
[393478689,1762709444174,-285.0,0.0002745,2]
[393478690,1762709444184,-285.0,0.0002745,2]
[393478691,1762709444193,-285.0,0.0002745,2]
[393478692,1762709444204,-285.0,0.0002745,2]
[393478693,1762709444215,-285.0,0.0002745,2]
[393478694,1762709444225,-285.0,0.0002745,2]
[393478695,1762709444234,-153.0,0.00027451,2]
[393478696,1762709444243,-153.0,0.00027451,2]
[393478697,1762709444254,-153.0,0.00027451,2]
[393478698,1762709444263,-153.0,0.00027451,2]
[393478699,1762709444275,-153.0,0.00027454,2]
[393478700,1762709444285,-153.0,0.00027454,2]
[393478701,1762709444294,-153.0,0.00027454,2]
[393478702,1762709444303,-485.0,0.00027454,2]
[393478703,1762709444312,-485.0,0.00027454,2]
[393478704,1762709444322,-485.0,0.00027454,2]
[393478705,1762709444332,-485.0,0.00027454,2]
[393478706,1762709444341,-485.0,0.00027454,2]
[393478707,1762709444350,-485.0,0.00027454,2]
[393478708,1762709444359,-485.0,0.00027454,2]
[393478709,1762709444368,-485.0,0.00027454,2]
[393478710,1762709444378,-485.0,0.00027454,2]
[393478711,1762709444387,-485.0,0.00027454,2]
[393478712,1762709444396,-485.0,0.00027454,2]
[393478713,1762709444407,-485.0,0.00027454,2]
[393478714,1762709444417,-485.0,0.00027454,2]
[393478715,1762709444427,-485.0,0.00027454,2]
[393478716,1762709444436,-485.0,0.00027454,2]
[393478717,1762709444446,-485.0,0.00027454,2]
[393478718,1762709444455,-485.0,0.00027454,2]
[393478719,1762709444465,-485.0,0.00027454,2]
[393478720,1762709444475,-485.0,0.00027454,2]
[393478721,1762709444484,-485.0,0.00027454,2]
[393478722,1762709444494,-485.0,0.00027454,2]
[393478723,1762709444505,-485.0,0.00027454,2]
[393478724,1762709444515,-485.0,0.00027454,2]
[393478725,1762709444525,-485.0,0.00027454,2]
[393478726,1762709444535,-485.0,0.00027454,2]
[393478727,1762709444544,-485.0,0.00027454,2]
[393478728,1762709444553,-485.0,0.00027454,2]
[393478729,1762709444562,-485.0,0.00027454,2]
[393478730,1762709444571,-485.0,0.00027454,2]
[393478731,1762709444580,-1464.06,0.00027671,30]
[393478732,1762709444590,-400.0,0.0002787,2]
[393478733,1762709444600,-1732.35613584,0.00028412,2]
[393478734,1762709444609,-159.7,0.00028462,30]
[393478735,1762709444618,-158.92475702,0.0002854,2]
[393478736,1762709444628,-1596.0,0.00028933,2]
[393478737,1762709444637,-820.0,0.00028933,2]
[393478738,1762709444646,-1273.0,0.00028933,2]
[393478739,1762709444673,-813.0,0.00028933,2]
[393478740,1762709444684,-906.0,0.00028933,2]
[393478741,1762709444698,-1189.0,0.00028933,2]
[393478742,1762709444708,-574.0,0.00028933,2]
[393478743,1762709444718,-2142.0,0.00028933,2]
[393478744,1762709444728,-608.0,0.00028933,2]
[393478745,1762709444739,-1316.0,0.00028933,2]
[393478746,1762709444749,-9035.0,0.0002896,2]
[393478747,1762709444759,-152.0,0.00029133,3]
[393478748,1762709444771,-500.0,0.00029356,7]
[393478749,1762709444780,-500.0,0.00029356,7]
[393478750,1762709444790,-500.0,0.00029356,7]
[393478751,1762709444800,-502.98210969,0.0002961,5]
[393478752,1762709444809,-150.0,0.00029674,2]
[393478753,1762709444819,-7242.73,0.000297,7]
[393478754,1762709444829,-500.99707838,0.00029906,5]
[393478755,1762709444839,-230.0,0.0003,14]
[393478756,1762709444848,-500.0,0.0003,7]
[393478757,1762709444858,-500.0,0.0003,7]
[393478758,1762709444868,-500.0,0.0003,7]
[393478759,1762709444877,-500.0,0.0003,7]
[393478760,1762709444887,-500.0,0.0003,7]
[393478761,1762709444897,-500.0,0.0003,7]
[393478762,1762709444906,-500.0,0.0003,7]
[393478763,1762709444916,-500.0,0.0003,7]
[393478764,1762709444926,-500.0,0.0003,7]
[393478765,1762709444936,-500.0,0.0003,7]
[393478766,1762709444945,-500.0,0.0003,7]
[393478767,1762709444955,-500.0,0.0003,7]
[393478768,1762709444966,-500.0,0.0003,7]
[393478769,1762709444975,-500.0,0.0003,7]
[393478770,1762709444985,-500.0,0.0003,7]
[393478771,1762709444999,-500.0,0.0003,7]
[393478772,1762709445009,-500.0,0.0003,7]
[393478773,1762709445019,-500.0,0.0003,7]
[393478774,1762709445029,-500.0,0.0003,7]
[393478775,1762709445039,-500.0,0.0003,7]
[393478776,1762709445048,-500.0,0.0003,7]
[393478777,1762709445058,-500.0,0.0003,7]
[393478778,1762709445068,-500.0,0.0003,7]
[393478779,1762709445078,-500.0,0.0003,7]
[393478780,1762709445088,-500.0,0.0003,7]
[393478781,1762709445097,-500.0,0.0003,7]
[393478782,1762709445107,-500.0,0.0003,7]
[393478783,1762709445116,-500.0,0.0003,7]
[393478784,1762709445126,-500.0,0.0003,7]
[393478785,1762709445136,-500.0,0.0003,7]
[393478786,1762709445146,-500.0,0.0003,7]
[393478787,1762709445156,-500.0,0.0003,7]
[393478788,1762709445166,-500.0,0.0003,7]
[393478789,1762709445176,-500.0,0.0003,7]
[393478790,1762709445185,-500.0,0.0003,7]
[393478791,1762709445196,-500.0,0.0003,7]
[393478792,1762709445205,-500.0,0.0003,7]
[393478793,1762709445215,-500.0,0.0003,7]
[393478794,1762709445226,-500.0,0.0003,7]
[393478795,1762709445235,-336.24,0.0003,7]
[393478796,1762709445245,-500.0,0.0003,7]
[393478797,1762709445256,-500.0,0.0003,7]
[393478798,1762709445266,-500.0,0.0003,7]
[393478799,1762709445276,-500.0,0.0003,7]
[393478800,1762709445286,-500.0,0.0003,7]
[393478801,1762709445295,-500.0,0.0003,7]
[393478802,1762709445305,-500.0,0.0003,7]
[393478803,1762709445314,-500.0,0.0003,7]
[393478804,1762709445324,-500.0,0.0003,7]
[393478805,1762709445334,-500.0,0.0003,7]
[393478806,1762709445345,-500.0,0.0003,7]
[393478807,1762709445355,-500.0,0.0003,7]
[393478808,1762709445365,-500.0,0.0003,7]
[393478809,1762709445374,-500.0,0.0003,7]
[393478810,1762709445384,-170.36,0.0003,7]
[393478811,1762709445395,-2000.0,0.0003,2]
[393478812,1762709445405,-381.34699916,0.00030137,2]
[393478813,1762709445415,-500.0,0.00030137,2]
[393478814,1762709445425,-500.0,0.00030274,2]
[393478815,1762709445435,-2617.02,0.000303,2]
[393478816,1762709445445,-1427.3,0.000304,7]
[393478817,1762709445458,-450.31,0.000304,30]
[393478818,1762709445468,-199.0,0.0003041,7]
[393478819,1762709445478,-357.82697939,0.00030411,2]
[393478820,1762709445488,-1732.35613584,0.00030505,2]
[393478821,1762709445498,-159.7,0.00030616,30]
[393478823,1762709445507,-177.01,0.00030631,2]
[393478824,1762709445517,-416.8,0.00030685,30]
[393478825,1762709445526,-1000.0,0.00030716,2]
[393478826,1762709445536,-1000.0,0.00030721,2]
[393478827,1762709445545,-1000.0,0.00030729,2]
[393478828,1762709445555,-1000.0,0.00030732,2]
[393478829,1762709445564,-1000.0,0.00030733,2]
[393478830,1762709445574,-1000.0,0.00030734,2]
[393478831,1762709445583,-1000.0,0.00030739,2]
[393478832,1762709445593,-1000.0,0.00030743,2]
[393478833,1762709445603,-1000.0,0.00030744,2]
[393478834,1762709445613,-1000.0,0.00030745,2]
[393478835,1762709445623,-1000.0,0.00030751,2]
[393478836,1762709445633,-150.0,0.00030752,2]
[393478837,1762709445643,-1000.0,0.00030753,2]
[393478838,1762709445652,-1000.0,0.00030754,2]
[393478839,1762709445662,-150.0,0.00030756,2]
[393478840,1762709445673,-1000.0,0.00030763,2]
[393478841,1762709445683,-1000.0,0.00030769,2]
[393478842,1762709445697,-1000.0,0.00030774,2]
[393478843,1762709445707,-1000.0,0.00030775,2]
[393478844,1762709445717,-1000.0,0.00030778,2]
[393478845,1762709445728,-1000.0,0.00030779,2]
[393478846,1762709445738,-1000.0,0.00030779,2]
[393478847,1762709445748,-150.0,0.0003078,2]
[393478848,1762709445757,-150.0,0.00030781,2]
[393478849,1762709445768,-1000.0,0.00030781,2]
[393478850,1762709445777,-1000.0,0.00030783,2]
[393478851,1762709445787,-1000.0,0.00030784,2]
[393478852,1762709445796,-1000.0,0.00030786,2]
[393478853,1762709445806,-1000.0,0.00030787,2]
[393478854,1762709445815,-1000.0,0.00030788,2]
[393478855,1762709445825,-1000.0,0.00030791,2]
[393478856,1762709445834,-150.0,0.00030792,2]
[393478857,1762709445844,-1000.0,0.00030792,2]
[393478858,1762709445853,-1000.0,0.00030794,2]
[393478859,1762709445863,-1000.0,0.00030797,2]
[393478860,1762709445873,-150.0,0.00030802,2]
[393478861,1762709445882,-1000.0,0.00030802,2]
[393478862,1762709445892,-1000.0,0.00030803,2]
[393478863,1762709445902,-1000.0,0.00030803,2]
[393478864,1762709445912,-1000.0,0.00030804,2]
[393478865,1762709445923,-1000.0,0.00030806,2]
[393478866,1762709445935,-152.0,0.00030807,4]
[393478867,1762709445947,-1000.0,0.00030808,2]
[393478868,1762709445958,-1000.0,0.00030809,2]
[393478869,1762709445969,-1000.0,0.00030809,2]
[393478870,1762709445979,-1000.0,0.00030817,2]
[393478871,1762709445989,-1000.0,0.00030817,2]
[393478872,1762709446000,-1000.0,0.0003082,2]
[393478873,1762709446010,-150.0,0.00030824,2]
[393478874,1762709446020,-150.0,0.00030825,2]
[393478875,1762709446032,-150.0,0.00030828,2]
[393478876,1762709446042,-1000.0,0.00030828,2]
[393478877,1762709446052,-1000.0,0.00030829,2]
[393478878,1762709446062,-1000.0,0.00030835,2]
[393478879,1762709446072,-150.0,0.00030836,2]
[393478880,1762709446082,-150.0,0.00030837,2]
[393478881,1762709446093,-2576.90209391,0.0003084,2]
[393478882,1762709446103,-1000.0,0.00030841,2]
[393478883,1762709446114,-1000.0,0.00030846,2]
[393478884,1762709446123,-1000.0,0.00030846,2]
[393478885,1762709446133,-150.0,0.00030847,2]
[393478886,1762709446143,-1000.0,0.0003085,2]
[393478887,1762709446153,-1000.0,0.00030854,2]
[393478888,1762709446163,-150.0,0.00030855,2]
[393478889,1762709446173,-1000.0,0.00030855,2]
[393478890,1762709446182,-160.4064196,0.00030855,2]
[393478891,1762709446192,-150.0,0.00030857,2]
[393478892,1762709446202,-1000.0,0.00030859,2]
[393478893,1762709446211,-1000.0,0.00030859,2]
[393478894,1762709446221,-150.0,0.00030863,2]
[393478895,1762709446230,-1000.0,0.00030867,2]
[393478896,1762709446240,-1000.0,0.00030868,2]
[393478897,1762709446250,-150.0,0.0003087,2]
[393478898,1762709446260,-1000.0,0.00030875,2]
[393478899,1762709446269,-150.0,0.00030876,2]
[393478900,1762709446280,-1000.0,0.00030877,2]
[393478901,1762709446289,-150.0,0.00030889,2]
[393478902,1762709446299,-1000.0,0.0003089,2]
[393478903,1762709446308,-1000.0,0.00030893,2]
[393478904,1762709446318,-1000.0,0.00030897,2]
[393478905,1762709446328,-150.0,0.00030907,2]
[393478906,1762709446338,-150.0,0.00030908,2]
[393478908,1762709446348,-1000.0,0.00030909,2]
[393478910,1762709446358,-1000.0,0.00030911,2]
[393478912,1762709446369,-1000.0,0.00030912,2]
[393478913,1762709446379,-1000.0,0.00030914,2]
[393478916,1762709446389,-1000.0,0.00030916,2]
[393478917,1762709446399,-1000.0,0.00030919,2]
[393478918,1762709446409,-1000.0,0.0003092,2]
[393478919,1762709446420,-150.0,0.00030926,2]
[393478920,1762709446430,-1000.0,0.0003093,2]
[393478921,1762709446441,-150.0,0.00030933,2]
[393478922,1762709446451,-1000.0,0.00030934,2]
[393478923,1762709446460,-1000.0,0.00030937,2]
[393478924,1762709446471,-150.0,0.00030941,2]
[393478925,1762709446481,-150.0,0.00030943,2]
[393478926,1762709446491,-1000.0,0.00030943,2]
[393478927,1762709446500,-150.0,0.00030944,2]
[393478928,1762709446510,-1000.0,0.00030948,2]
[393478929,1762709446520,-1000.0,0.0003095,2]
[393478930,1762709446530,-66465.783294,0.0003095,2]
[393478931,1762709446540,-1000.0,0.00030955,2]
[393478932,1762709446549,-199.0,0.00030958,8]
[393478933,1762709446558,-1000.0,0.0003096,2]
[393478934,1762709446568,-150.0,0.00030965,2]
[393478936,1762709446578,-1000.0,0.00030965,2]
[393478937,1762709446587,-1000.0,0.00030967,2]
[393478938,1762709446597,-150.0,0.00030969,2]
[393478940,1762709446607,-1000.0,0.0003097,2]
[393478941,1762709446616,-301.10983902,0.0003097,2]
[393478942,1762709446626,-400.0,0.0003097,2]
[393478943,1762709446635,-500.0,0.00030973,5]
[393478944,1762709446645,-1000.0,0.00030985,2]
[393478945,1762709446654,-1000.0,0.00030987,2]
[393478946,1762709446663,-1000.0,0.00030988,2]
[393478947,1762709446673,-1000.0,0.00030989,2]
[393478948,1762709446683,-66509.48267537,0.00031,2]
[393478949,1762709446697,-94463.92780189,0.00031,2]
[393478950,1762709446707,-156.95889341,0.00031,30]
[393478951,1762709446718,-150.0,0.00031,7]
[393478952,1762709446728,-171.10220644,0.00031,7]
[393478953,1762709446739,-150.0,0.00031,7]
[393478954,1762709446748,-150.0,0.00031,7]
[393478955,1762709446757,-150.0,0.00031,7]
[393478956,1762709446767,-150.0,0.00031,7]
[393478957,1762709446776,-173.1226522,0.00031,7]
[393478958,1762709446785,-150.0,0.00031,7]
[393478959,1762709446794,-150.0,0.00031,7]
[393478960,1762709446803,-500.0,0.00031,7]
[393478961,1762709446813,-500.0,0.00031,7]
[393478962,1762709446822,-150.0,0.00031,7]
[393478963,1762709446836,-150.0,0.00031,7]
[393478964,1762709446845,-150.0,0.00031,7]
[393478965,1762709446855,-150.0,0.00031,7]
[393478966,1762709446864,-150.0,0.00031,2]
[393478967,1762709446875,-500.0,0.00031,7]
[393478968,1762709447056,-1293.03134315,0.00031,2]
[393478969,1762709447068,-150.0,0.00031,2]
[393478970,1762709447078,-3377.78169785,0.00031,2]
[393478971,1762709447089,-184.12,0.00031,23]
[393478972,1762709447099,-150.0,0.00031,2]
[393478973,1762709447108,-2375.20890159,0.00031,2]
[393478974,1762709447118,-171.10220644,0.00031146,7]
[393478975,1762709447129,-173.1226522,0.00031146,7]
[393478976,1762709447139,-150.0,0.00031185,7]
[393478977,1762709447149,-150.0,0.00031188,7]
[393478978,1762709447158,-150.0,0.00031195,7]
[393478979,1762709447168,-150.0,0.00031195,7]
[393478980,1762709447178,-7242.73,0.000312,7]
[393478981,1762709447187,-171.10220644,0.00031292,7]
[393478982,1762709447197,-173.1226522,0.00031292,7]
[393478983,1762709447207,-177.01,0.00031318,2]
[393478984,1762709447216,-353.92,0.00031318,2]
[393478985,1762709447226,-177.01,0.00031318,2]
[393478986,1762709447235,-353.76,0.00031318,2]
[393478987,1762709447245,-150.0,0.0003137,7]
[393478988,1762709447254,-150.0,0.00031375,7]
[393478989,1762709447264,-263.3162014,0.0003138,2]
[393478990,1762709447274,-150.0,0.0003138,7]
[393478991,1762709447284,-150.0,0.0003139,7]
[393478992,1762709447293,-150.0,0.0003139,7]
[393478993,1762709447303,-2617.02,0.000314,2]
[393478994,1762709447312,-19405.39963927,0.0003143,4]
[393478995,1762709447323,-171.10220644,0.00031438,7]
[393478996,1762709447333,-173.1226522,0.00031438,7]
[393478997,1762709447343,-194.7414896,0.000315,2]
[393478998,1762709447353,-150.0,0.000315,2]
[393478999,1762709447362,-253.67750133,0.000315,2]
[393479000,1762709447373,-199.0,0.00031506,9]
[393479001,1762709447384,-1000.0,0.00031521,5]
[393479002,1762709447393,-150.0,0.00031556,7]
[393479003,1762709447403,-150.0,0.00031563,7]
[393479004,1762709447412,-11031.20089491,0.00031569,2]
[393479005,1762709447422,-150.0,0.00031578,7]
[393479006,1762709447431,-171.10220644,0.00031584,7]
[393479007,1762709447442,-173.1226522,0.00031584,7]
[393479008,1762709447452,-150.0,0.00031586,7]
[393479009,1762709447461,-150.0,0.00031586,7]
[393479010,1762709447470,-150.0,0.00031688,7]
[393479011,1762709447480,-450.31,0.000317,30]
[393479012,1762709447489,-171.10220644,0.00031729,7]
[393479013,1762709447499,-173.1226522,0.00031729,7]
[393479014,1762709447508,-150.0,0.00031741,7]
[393479015,1762709447517,-150.0,0.0003175,7]
[393479016,1762709447526,-150.0,0.0003176,7]
[393479017,1762709447535,-150.0,0.00031781,7]
[393479018,1762709447544,-150.0,0.00031781,7]
[393479019,1762709447553,-1427.3,0.000318,7]
[393479020,1762709447563,-2434.0,0.00031805,3]
[393479021,1762709447572,-171.10220644,0.00031875,7]
[393479022,1762709447581,-173.1226522,0.00031875,7]
[393479023,1762709447590,-150.0,0.00031926,7]
[393479024,1762709447599,-1596.0,0.00031933,2]
[393479025,1762709447608,-820.0,0.00031933,2]
[393479026,1762709447617,-1273.0,0.00031933,2]
[393479027,1762709447627,-813.0,0.00031933,2]
[393479028,1762709447636,-906.0,0.00031933,2]
[393479029,1762709447651,-1189.0,0.00031933,2]
[393479030,1762709447661,-574.0,0.00031933,2]
[393479031,1762709447671,-2142.0,0.00031933,2]
[393479032,1762709447680,-608.0,0.00031933,2]
[393479033,1762709447694,-1316.0,0.00031933,2]
[393479034,1762709447703,-150.0,0.00031938,7]
[393479035,1762709447712,-150.0,0.00031976,7]
[393479036,1762709447721,-150.0,0.00031976,7]
[393479037,1762709447732,-222.0,0.00032,30]
[393479038,1762709447741,-2038.29818281,0.00032,120]
[393479039,1762709447751,-1013.04010444,0.00032,7]
[393479040,1762709447760,-1103.0,0.00032,120]
[393479041,1762709447772,-1010.0,0.00032,7]
[393479042,1762709447781,-171.10220644,0.00032021,7]
[393479043,1762709447790,-173.1226522,0.00032021,7]
[393479044,1762709447800,-199.0,0.00032054,10]
[393479045,1762709447810,-1019.9730944,0.00032068,5]
[393479046,1762709447820,-150.0,0.00032111,7]
[393479047,1762709447829,-150.0,0.00032111,7]
[393479048,1762709447838,-150.0,0.00032126,7]
[393479049,1762709447848,-150.0,0.0003214,7]
[393479050,1762709447857,-930.7,0.00032154,2]
[393479051,1762709447867,-150.0,0.00032156,7]
[393479052,1762709447876,-2232.878,0.00032161,31]
[393479053,1762709447886,-166.634,0.00032161,31]
[393479054,1762709447895,-171.10220644,0.00032167,7]
[393479055,1762709447904,-173.1226522,0.00032167,7]
[393479056,1762709447914,-150.0,0.00032171,7]
[393479057,1762709447924,-150.0,0.00032171,7]
[393479058,1762709447933,-150.0,0.00032296,7]
[393479059,1762709447943,-881.83907134,0.000323,2]
[393479060,1762709447953,-150.0,0.00032313,7]
[393479061,1762709447963,-171.10220644,0.00032313,7]
[393479062,1762709447972,-173.1226522,0.00032313,7]
[393479063,1762709447981,-151.0,0.0003232,2]
[393479064,1762709447991,-150.0,0.00032366,7]
[393479065,1762709448000,-150.0,0.00032366,7]
[393479066,1762709448010,-150.0,0.00032376,7]
[393479067,1762709448019,-2617.02,0.000324,2]
[393479068,1762709448028,-1000.0,0.000324,7]
[393479069,1762709448038,-171.10220644,0.00032459,7]
[393479070,1762709448048,-173.1226522,0.00032459,7]
[393479071,1762709448057,-152.0,0.0003248,5]
[393479072,1762709448067,-150.0,0.00032481,7]
[393479073,1762709448076,-150.0,0.00032501,7]
[393479074,1762709448086,-150.0,0.0003252,7]
[393479075,1762709448095,-150.0,0.00032562,7]
[393479076,1762709448105,-150.0,0.00032562,7]
[393479077,1762709448114,-1732.35613584,0.00032597,2]
[393479078,1762709448123,-199.0,0.00032602,11]
[393479079,1762709448132,-171.10220644,0.00032605,7]
[393479080,1762709448142,-173.1226522,0.00032605,7]
[393479081,1762709448152,-500.0,0.00032644,7]
[393479082,1762709448161,-500.0,0.00032644,7]
[393479083,1762709448170,-150.0,0.00032667,7]
[393479084,1762709448180,-150.0,0.00032688,7]
[393479085,1762709448190,-150.0,0.00032733,7]
[393479086,1762709448201,-1048.42825907,0.00032733,7]
[393479087,1762709448211,-5000.0,0.00032736,5]
[393479088,1762709448221,-666.0,0.0003274,10]
[393479089,1762709448230,-171.10220644,0.00032751,7]
[393479090,1762709448239,-173.1226522,0.00032751,7]
[393479091,1762709448249,-150.0,0.00032757,7]
[393479092,1762709448258,-150.0,0.00032757,7]
[393479093,1762709448267,-159.7,0.0003277,30]
[393479094,1762709448277,-4762.61757774,0.000328,2]
[393479095,1762709448287,-450.31,0.000328,30]
[393479096,1762709448296,-150.0,0.00032806,7]
[393479097,1762709448305,-666.0,0.00032825,10]
[393479098,1762709448315,-666.0,0.00032825,10]
[393479099,1762709448325,-671.49769143,0.00032834,10]
[393479100,1762709448334,-150.0,0.00032852,7]
[393479101,1762709448343,-1999.0,0.00032855,2]
[393479102,1762709448352,-150.0,0.00032865,20]
[393479103,1762709448361,-150.0,0.00032876,7]
[393479104,1762709448371,-1000.0,0.00032876,2]
[393479105,1762709448380,-1000.0,0.00032876,2]
[393479106,1762709448390,-1000.0,0.00032876,2]
[393479107,1762709448399,-1000.0,0.00032876,2]
[393479108,1762709448409,-1000.0,0.00032876,2]
[393479109,1762709448419,-1000.0,0.00032876,2]
[393479110,1762709448431,-1000.0,0.00032876,2]
[393479111,1762709448441,-1000.0,0.00032876,2]
[393479112,1762709448450,-1000.0,0.00032876,2]
[393479113,1762709448459,-1000.0,0.00032876,2]
[393479114,1762709448470,-1000.0,0.00032876,2]
[393479115,1762709448479,-1000.0,0.00032876,2]
[393479116,1762709448489,-914.55329736,0.00032876,2]
[393479117,1762709448498,-1000.0,0.00032876,2]
[393479118,1762709448507,-1000.0,0.00032876,2]
[393479119,1762709448517,-1000.0,0.00032876,2]
[393479120,1762709448526,-1000.0,0.00032876,2]
[393479121,1762709448535,-1000.0,0.00032876,2]
[393479122,1762709448545,-1000.0,0.00032876,2]
[393479123,1762709448554,-1000.0,0.00032876,2]
[393479124,1762709448563,-1000.0,0.00032876,2]
[393479125,1762709448572,-1000.0,0.00032876,2]
[393479126,1762709448582,-1000.0,0.00032876,2]
[393479127,1762709448591,-1000.0,0.00032876,2]
[393479128,1762709448601,-1000.0,0.00032876,2]
[393479129,1762709448610,-1000.0,0.00032876,2]
[393479130,1762709448619,-1012.38148609,0.00032876,2]
[393479131,1762709448629,-500.0,0.00032876,2]
[393479132,1762709448639,-500.0,0.00032876,2]
[393479133,1762709448649,-500.0,0.00032876,2]
[393479134,1762709448658,-500.0,0.00032876,2]
[393479135,1762709448670,-500.0,0.00032876,2]
[393479136,1762709448679,-500.0,0.00032876,2]
[393479137,1762709448690,-500.0,0.00032876,2]
[393479138,1762709448702,-500.0,0.00032876,2]
[393479139,1762709448711,-430.50327578,0.00032876,2]
[393479140,1762709448721,-278.47188371,0.00032876,15]
[393479141,1762709448731,-500.0,0.00032876,2]
[393479142,1762709448741,-500.0,0.00032876,2]
[393479143,1762709448750,-500.0,0.00032876,2]
[393479144,1762709448760,-500.0,0.00032876,2]
[393479145,1762709448770,-500.0,0.00032876,2]
[393479146,1762709448780,-500.0,0.00032876,2]
[393479147,1762709448789,-207.24857978,0.00032876,2]
[393479148,1762709448798,-500.0,0.00032876,2]
[393479149,1762709448807,-500.0,0.00032876,2]
[393479150,1762709448816,-500.0,0.00032876,2]
[393479151,1762709448825,-500.0,0.00032876,2]
[393479152,1762709448834,-500.0,0.00032876,2]
[393479153,1762709448843,-500.0,0.00032876,2]
[393479154,1762709448852,-500.0,0.00032876,2]
[393479155,1762709448861,-500.0,0.00032876,2]
[393479156,1762709448870,-500.0,0.00032876,2]
[393479157,1762709448880,-500.0,0.00032876,2]
[393479158,1762709448889,-500.0,0.00032876,2]
[393479159,1762709448899,-500.0,0.00032876,2]
[393479160,1762709448907,-309.29971983,0.00032876,2]
[393479161,1762709448917,-1289.96,0.00032876,2]
[393479162,1762709448927,-1289.96,0.00032876,2]
[393479163,1762709448936,-1289.96,0.00032876,2]
[393479164,1762709448950,-1289.96,0.00032876,2]
[393479165,1762709448959,-1289.96,0.00032876,2]
[393479166,1762709448970,-1289.96,0.00032876,2]
[393479167,1762709448979,-1289.96,0.00032876,2]
[393479168,1762709448988,-1289.96,0.00032876,2]
[393479169,1762709448999,-1289.96,0.00032876,2]
[393479170,1762709449009,-1289.96,0.00032876,2]
[393479171,1762709449018,-1289.96,0.00032876,2]
[393479172,1762709449028,-1289.96,0.00032876,2]
[393479173,1762709449038,-1289.96,0.00032876,2]
[393479174,1762709449049,-1289.96,0.00032876,2]
[393479175,1762709449058,-1289.96,0.00032876,2]
[393479176,1762709449068,-1289.96,0.00032876,2]
[393479177,1762709449079,-1289.96,0.00032876,2]
[393479178,1762709449089,-1289.96,0.00032876,2]
[393479179,1762709449099,-1289.96,0.00032876,2]
[393479180,1762709449108,-1289.96,0.00032876,2]
[393479181,1762709449120,-1289.96,0.00032876,2]
[393479182,1762709449130,-1289.96,0.00032876,2]
[393479183,1762709449139,-1289.96,0.00032876,2]
[393479184,1762709449149,-1290.12970941,0.00032876,2]
[393479185,1762709449158,-502.15459775,0.00032876,10]